fUSD/lending_fUSD_20260126
["ID","MTS","AMOUNT","RATE_DAILY","PERIOD"]
[403675552,1769466643305,-1958.26100046,0.00016438,2]
[403675553,1769466643315,-1958.26100046,0.00016438,2]
[403675554,1769466643326,-1958.26100046,0.00016438,2]
[403675555,1769466643336,-1958.26100046,0.00016438,2]
[403675556,1769466643346,-1958.26100046,0.00016438,2]
[403675557,1769466643355,-500.0,0.00016438,2]
[403675558,1769466643364,-500.0,0.00016438,2]
[403675559,1769466643374,-500.0,0.00016438,2]
[403675560,1769466643385,-500.0,0.00016438,2]
[403675561,1769466643395,-419.69674445,0.00016438,2]
[403675562,1769466643404,-316.79448902,0.00016438,2]
[403675563,1769466643413,-800.0,0.00016438,2]
[403675564,1769466643425,-881.0,0.00016438,2]
[403675565,1769466643434,-798.0,0.00016438,2]
[403675566,1769466643443,-267.46074303,0.00016438,2]
[403675567,1769466643453,-201.98607512,0.00016492,2]
[403675568,1769466643466,-9577.0107416,0.000165,2]
[403675569,1769466643476,-1180.82008836,0.00016534,2]
[403675570,1769466643485,-10345.78,0.00016544,2]
[403675571,1769466643495,-217.0,0.00016558,2]
[403675572,1769466643506,-400.54,0.00016573,2]
[403675573,1769466643516,-606.0,0.00016575,2]
[403675574,1769466643527,-719.0,0.00016608,2]
[403675575,1769466643537,-698.49145275,0.00016616,2]
[403675600,1769466645117,-839.15,0.00016616,2]
[403675601,1769466645128,-35778.17854725,0.00016616,2]
[403675602,1769466645137,-1025.45,0.00016672,2]
[403675603,1769466645145,-1682.0,0.00016709,2]
[403675604,1769466645155,-189.0,0.00016709,2]
[403675605,1769466645163,-319.52,0.00016712,2]
[403675606,1769466645172,-203.86,0.00016712,2]
[403675607,1769466645182,-165.07,0.00016712,2]
[403675608,1769466645191,-510.0,0.00016739,2]
[403675609,1769466645199,-201.0,0.00016743,2]
[403675610,1769466645208,-6671.58964986,0.00016805,2]
[403675611,1769466645218,-500.0,0.00016812,2]
[403675612,1769466645227,-500.0,0.00016921,2]
[403675613,1769466645235,-487.0,0.00016922,2]
[403675614,1769466645244,-487.0,0.00016922,2]
[403675615,1769466645253,-487.0,0.00016922,2]
[403675616,1769466645262,-487.0,0.00016922,2]
[403675617,1769466645271,-487.0,0.00016922,2]
[403675618,1769466645281,-487.0,0.00016922,2]
[403675619,1769466645290,-487.0,0.00016922,2]
[403675620,1769466645300,-487.0,0.00016922,2]
[403675621,1769466645310,-872.03,0.00016922,2]
[403675622,1769466645320,-319.52,0.00016986,2]
[403675623,1769466645330,-798.0,0.00016986,2]
[403675624,1769466645341,-376.53925697,0.00016986,2]
[403675625,1769466645351,-429.81,0.00016995,2]
[403675626,1769466645360,-220.38641614,0.00016999,2]
[403675627,1769466645369,-250.0,0.00017,2]
[403675628,1769466645378,-311141.3143789,0.00017,2]
[403675629,1769466645388,-160.0,0.00017,2]
[403675630,1769466645397,-420.0,0.00017079,2]
[403675631,1769466645406,-426.97220513,0.0001714,2]
[403675632,1769466645415,-759.04891724,0.00017155,2]
[403675633,1769466645423,-2003.14210192,0.00017155,2]
[403675634,1769466645432,-1680.0,0.00017165,2]
[403675635,1769466645441,-201.18870474,0.00017178,2]
[403675636,1769466645450,-200.0,0.00017178,2]
[403675637,1769466645462,-200.0,0.00017178,2]
[403675638,1769466645471,-319.52,0.0001726,2]
[403675639,1769466645480,-250.0,0.00017285,2]
[403675640,1769466645489,-195.0,0.00017288,2]
[403675641,1769466645499,-200.0,0.00017288,2]
[403675642,1769466645507,-200.0,0.00017288,2]
[403675643,1769466645516,-208.68914964,0.00017288,2]
[403675644,1769466645525,-250.0,0.00017288,2]
[403675645,1769466645537,-600.0,0.00017288,2]
[403675646,1769466645546,-300.0,0.00017288,2]
[403675647,1769466645555,-500.0,0.0001736,2]
[403675648,1769466645564,-1100.0,0.000174,6]
[403675649,1769466645573,-159.33586697,0.00017424,2]
[403675650,1769466645582,-438.0,0.00017425,2]
[403675651,1769466645592,-1600.0,0.000175,6]
[403675652,1769466645602,-319.52,0.00017534,2]
[403675653,1769466645611,-3293.883794,0.00017558,2]
[403675654,1769466645620,-1398.1044911,0.00017558,2]
[403675655,1769466645630,-180.0294438,0.00017558,2]
[403675656,1769466645640,-7141.0723157,0.00017558,2]
[403675657,1769466645650,-765.0,0.00017566,2]
[403675658,1769466645659,-765.0,0.00017596,2]
[403675659,1769466645668,-2200.0,0.000176,6]
[403675660,1769466645678,-429.81,0.0001761,2]
[403675661,1769466645687,-150.0,0.00017659,2]
[403675662,1769466645697,-150.0,0.00017659,2]
[403675663,1769466645706,-1231.6,0.00017659,2]
[403675664,1769466645715,-150.0,0.00017659,2]
[403675665,1769466645724,-1231.6,0.00017659,2]
[403675666,1769466645734,-150.0,0.00017659,2]
[403675667,1769466645744,-765.0,0.00017688,2]
[403675668,1769466645753,-152.18717547,0.00017699,2]
[403675669,1769466645762,-150.0,0.00017699,2]
[403675670,1769466645772,-500.0,0.00017699,2]
[403675671,1769466645781,-150.0,0.00017699,2]
[403675672,1769466645791,-500.0,0.00017699,2]
[403675673,1769466645801,-150.0,0.00017699,2]
[403675674,1769466645810,-500.0,0.00017699,2]
[403675675,1769466645820,-500.0,0.00017699,2]
[403675676,1769466645829,-150.0,0.00017699,2]
[403675677,1769466645839,-500.0,0.00017699,2]
[403675678,1769466645848,-150.0,0.00017699,2]
[403675679,1769466645858,-500.0,0.00017699,2]
[403675680,1769466645868,-150.0,0.00017699,2]
[403675681,1769466645877,-500.0,0.00017699,2]
[403675682,1769466645887,-500.0,0.00017699,2]
[403675683,1769466645896,-200.0,0.00017699,2]
[403675684,1769466645906,-150.0,0.00017699,2]
[403675685,1769466645915,-500.0,0.00017699,2]
[403675686,1769466645924,-150.0,0.00017699,2]
[403675687,1769466645933,-808.0,0.00017699,2]
[403675688,1769466645943,-500.0,0.00017699,2]
[403675689,1769466645952,-500.0,0.00017699,2]
[403675690,1769466645961,-765.0,0.000177,2]
[403675691,1769466645970,-2700.0,0.000177,6]
[403675692,1769466645979,-765.0,0.00017726,2]
[403675693,1769466645988,-150.99,0.00017728,2]
[403675694,1769466645997,-9999.99,0.00017728,2]
[403675695,1769466646006,-900.0,0.00017734,2]
[403675696,1769466646015,-765.0,0.00017737,2]
[403675697,1769466646024,-150.0,0.00017754,2]
[403675698,1769466646033,-500.0,0.00017754,2]
[403675699,1769466646042,-259.18031493,0.00017754,2]
[403675700,1769466646052,-500.0,0.00017754,2]
[403675701,1769466646061,-500.0,0.00017754,2]
[403675702,1769466646070,-150.0,0.00017754,2]
[403675703,1769466646079,-500.0,0.00017754,2]
[403675704,1769466646088,-500.0,0.00017754,2]
[403675705,1769466646097,-150.0,0.00017754,2]
[403675706,1769466646107,-500.0,0.00017754,2]
[403675707,1769466646115,-500.0,0.00017754,2]
[403675708,1769466646125,-600.0,0.00017754,2]
[403675709,1769466646134,-150.0,0.00017754,2]
[403675710,1769466646143,-500.0,0.00017754,2]
[403675711,1769466646151,-808.0,0.00017754,2]
[403675712,1769466646160,-500.0,0.00017754,2]
[403675713,1769466646170,-500.0,0.00017754,2]
[403675714,1769466646179,-765.0,0.00017776,2]
[403675715,1769466646188,-446.04265821,0.00017779,2]
[403675716,1769466646197,-150.0,0.0001779,2]
[403675717,1769466646206,-150.0,0.0001779,2]
[403675718,1769466646215,-150.0,0.0001779,2]
[403675720,1769466646224,-1231.6,0.0001779,2]
[403675721,1769466646233,-500.0,0.000178,6]
[403675722,1769466646242,-200.0,0.00017808,5]
[403675723,1769466646251,-200.0,0.00017808,5]
[403675724,1769466646261,-200.0,0.00017808,5]
[403675725,1769466646281,-200.0,0.00017808,5]
[403675726,1769466646302,-200.0,0.00017808,5]
[403675727,1769466646314,-200.0,0.00017808,5]
[403675728,1769466646325,-200.0,0.00017808,5]
[403675729,1769466646334,-200.0,0.00017808,5]
[403675730,1769466646347,-200.0,0.00017808,5]
[403675731,1769466646358,-200.0,0.00017808,5]
[403675732,1769466646369,-200.0,0.00017808,5]
[403675733,1769466646379,-200.0,0.00017808,5]
[403675734,1769466646389,-200.0,0.00017808,5]
[403675735,1769466646400,-200.0,0.00017808,5]
[403675736,1769466646409,-200.0,0.00017808,5]
[403675737,1769466646421,-200.0,0.00017808,5]
[403675738,1769466646432,-200.0,0.00017808,5]
[403675739,1769466646451,-200.0,0.00017808,5]
[403675740,1769466646472,-200.0,0.00017808,5]
[403675741,1769466646491,-200.0,0.00017808,5]
[403675742,1769466646501,-200.0,0.00017808,5]
[403675743,1769466646513,-200.0,0.00017808,5]
[403675744,1769466646525,-200.0,0.00017808,5]
[403675745,1769466646544,-200.0,0.00017808,5]
[403675746,1769466646564,-200.0,0.00017808,5]
[403675747,1769466646584,-200.0,0.00017808,5]
[403675748,1769466646594,-200.0,0.00017808,5]
[403675749,1769466646606,-200.0,0.00017808,5]
[403675750,1769466646616,-200.0,0.00017808,5]
[403675751,1769466646628,-200.0,0.00017808,5]
[403675752,1769466646640,-200.0,0.00017808,5]
[403675753,1769466646653,-200.0,0.00017808,5]
[403675754,1769466646667,-200.0,0.00017808,5]
[403675755,1769466646678,-200.0,0.00017808,5]
[403675756,1769466646691,-200.0,0.00017808,5]
[403675757,1769466646701,-200.0,0.00017808,5]
[403675758,1769466646712,-200.0,0.00017808,5]
[403675759,1769466646724,-200.0,0.00017808,5]
[403675760,1769466646736,-298.129632,0.00017808,5]
[403675761,1769466646747,-200.0,0.00017809,2]
[403675762,1769466646759,-500.0,0.00017809,2]
[403675763,1769466646771,-500.0,0.00017809,2]
[403675764,1769466646783,-394.09500415,0.00017809,2]
[403675766,1769466646793,-150.0,0.00017809,2]
[403675768,1769466646804,-500.0,0.00017809,2]
[403675770,1769466646814,-197.42246964,0.00017809,2]
[403675772,1769466646824,-500.0,0.00017809,2]
[403675774,1769466646835,-500.0,0.00017809,2]
[403675776,1769466646848,-500.0,0.00017809,2]
[403675778,1769466646859,-808.0,0.00017809,2]
[403675780,1769466646869,-500.0,0.00017809,2]
[403675782,1769466646881,-196.76380553,0.00017809,2]
[403675784,1769466646890,-500.0,0.00017863,2]
[403675786,1769466646899,-500.0,0.00017863,2]
[403675788,1769466646909,-150.0,0.00017863,2]
[403675790,1769466646918,-500.0,0.00017863,2]
[403675792,1769466646928,-500.0,0.00017863,2]
[403675794,1769466646937,-500.0,0.00017863,2]
[403675796,1769466646946,-500.0,0.00017863,2]
[403675798,1769466646957,-808.0,0.00017863,2]
[403675800,1769466646967,-500.0,0.00017863,2]
[403675802,1769466646975,-765.0,0.00017868,2]
[403675804,1769466646984,-577.44995,0.0001789,2]
[403675806,1769466646994,-577.44996,0.0001789,2]
[403675808,1769466647003,-577.44996,0.0001789,2]
[403675810,1769466647012,-765.0,0.00017896,2]
[403675812,1769466647021,-153.32057341,0.000179,2]
[403675814,1769466647031,-500.0,0.000179,6]
[403675816,1769466647040,-577.44996,0.000179,2]
[403675818,1769466647049,-577.44995,0.000179,2]
[403675820,1769466647058,-577.44996,0.000179,2]
[403675822,1769466647067,-222.96242774,0.000179,3]
[403675824,1769466647076,-765.0,0.000179,2]
[403675826,1769466647086,-765.0,0.0001791,2]
[403675828,1769466647095,-500.0,0.00017917,2]
[403675830,1769466647105,-500.0,0.00017918,2]
[403675832,1769466647115,-186.46559063,0.00017918,2]
[403675834,1769466647124,-205.39376385,0.00017918,2]
[403675836,1769466647136,-500.0,0.00017918,2]
[403675838,1769466647146,-574.0,0.00017918,2]
[403675839,1769466647155,-500.0,0.00017918,2]
[403675840,1769466647163,-588.0,0.00017918,2]
[403675841,1769466647172,-808.0,0.00017918,2]
[403675842,1769466647182,-2761.0741213,0.0001794,2]
[403675843,1769466647191,-358.47181638,0.00017942,2]
[403675844,1769466647201,-322.6107,0.00017942,2]
[403675845,1769466647210,-174.61919141,0.00017942,2]
[403675846,1769466647218,-359.76179104,0.00017942,2]
[403675847,1769466647228,-250.0,0.00017942,2]
[403675848,1769466647237,-2500.0,0.00017942,2]
[403675849,1769466647246,-201.93286099,0.00017942,2]
[403675850,1769466647255,-174.61919141,0.00017942,2]
[403675851,1769466647265,-250.0,0.00017942,2]
[403675852,1769466647276,-250.0,0.00017942,2]
[403675853,1769466647285,-2500.0,0.00017942,2]
[403675854,1769466647297,-250.0,0.00017942,2]
[403675855,1769466647306,-500.0,0.00017942,2]
[403675856,1769466647317,-250.0,0.00017942,2]
[403675857,1769466647328,-250.0,0.00017942,2]
[403675858,1769466647338,-250.0,0.00017942,2]
[403675859,1769466647348,-250.0,0.00017942,2]
[403675860,1769466647359,-250.0,0.00017942,2]
[403675861,1769466647370,-250.0,0.00017942,2]
[403675862,1769466647381,-250.0,0.00017942,2]
[403675863,1769466647391,-151.0,0.00017942,2]
[403675864,1769466647402,-250.0,0.00017942,2]
[403675865,1769466647411,-262.18822744,0.00017942,2]
[403675866,1769466647423,-250.0,0.00017942,2]
[403675867,1769466647432,-222.6043359,0.00017942,2]
[403675868,1769466647443,-250.0,0.00017942,2]
[403675869,1769466647452,-250.0,0.00017942,2]
[403675870,1769466647468,-250.0,0.00017942,2]
[403675871,1769466647479,-250.0,0.00017942,2]
[403675872,1769466647490,-250.0,0.00017942,2]
[403675873,1769466647501,-250.0,0.00017942,2]
[403675874,1769466647510,-250.0,0.00017942,2]
[403675875,1769466647520,-250.0,0.00017942,2]
[403675876,1769466647532,-250.0,0.00017942,2]
[403675877,1769466647541,-250.0,0.00017942,2]
[403675878,1769466647551,-250.0,0.00017942,2]
[403675879,1769466647561,-250.0,0.00017942,2]
[403675880,1769466647571,-500.0,0.00017942,2]
[403675881,1769466647580,-250.0,0.00017942,2]
[403675882,1769466647590,-250.0,0.00017942,2]
[403675883,1769466647600,-250.0,0.00017942,2]
[403675884,1769466647609,-500.0,0.00017942,2]
[403675885,1769466647618,-250.0,0.00017942,2]
[403675886,1769466647627,-250.0,0.00017942,2]
[403675887,1769466647636,-250.0,0.00017942,2]
[403675888,1769466647646,-500.0,0.00017942,2]
[403675889,1769466647657,-250.0,0.00017942,2]
[403675890,1769466647667,-250.0,0.00017942,2]
[403675891,1769466647676,-250.0,0.00017942,2]
[403675892,1769466647685,-500.0,0.00017942,2]
[403675893,1769466647694,-250.0,0.00017942,2]
[403675894,1769466647703,-250.0,0.00017942,2]
[403675895,1769466647713,-250.0,0.00017942,2]
[403675896,1769466647722,-500.0,0.00017942,2]
[403675897,1769466647731,-250.0,0.00017942,2]
[403675898,1769466647741,-250.0,0.00017942,2]
[403675899,1769466647750,-250.0,0.00017942,2]
[403675900,1769466647760,-500.0,0.00017942,2]
[403675901,1769466647770,-250.0,0.00017942,2]
[403675902,1769466647780,-250.0,0.00017942,2]
[403675903,1769466647791,-250.0,0.00017942,2]
[403675904,1769466647801,-500.0,0.00017942,2]
[403675905,1769466647810,-250.0,0.00017942,2]
[403675906,1769466647819,-250.0,0.00017942,2]
[403675907,1769466647828,-250.0,0.00017942,2]
[403675908,1769466647838,-250.0,0.00017942,2]
[403675909,1769466647847,-500.0,0.00017942,2]
[403675910,1769466648034,-250.0,0.00017942,2]
[403675911,1769466648044,-250.0,0.00017942,2]
[403675912,1769466648054,-500.0,0.00017942,2]
[403675913,1769466648063,-250.0,0.00017942,2]
[403675914,1769466648075,-250.0,0.00017942,2]
[403675915,1769466648084,-500.0,0.00017942,2]
[403675916,1769466648095,-250.0,0.00017942,2]
[403675917,1769466648105,-250.0,0.00017942,2]
[403675918,1769466648115,-500.0,0.00017942,2]
[403675919,1769466648124,-250.0,0.00017942,2]
[403675920,1769466648132,-500.0,0.00017942,2]
[403675921,1769466648141,-250.0,0.00017942,2]
[403675922,1769466648151,-823.77908852,0.00017942,2]
[403675923,1769466648160,-250.0,0.00017942,2]
[403675924,1769466648169,-151.0,0.00017942,2]
[403675925,1769466648178,-250.0,0.00017942,2]
[403675926,1769466648187,-250.0,0.00017942,2]
[403675927,1769466648196,-250.0,0.00017942,2]
[403675928,1769466648205,-250.0,0.00017942,2]
[403675929,1769466648214,-250.0,0.00017942,2]
[403675930,1769466648224,-250.0,0.00017942,2]
[403675931,1769466648233,-250.0,0.00017942,2]
[403675932,1769466648242,-695.39793187,0.00017942,2]
[403675933,1769466648252,-578.20924308,0.00017942,2]
[403675934,1769466648262,-151.0,0.00017942,2]
[403675935,1769466648274,-160.0,0.00017942,2]
[403675936,1769466648284,-3543.0,0.00017942,2]
[403675937,1769466648294,-250.0,0.00017942,2]
[403675938,1769466648303,-250.0,0.00017942,2]
[403675939,1769466648312,-250.0,0.00017942,2]
[403675940,1769466648323,-250.0,0.00017942,2]
[403675941,1769466648333,-250.0,0.00017942,2]
[403675942,1769466648342,-250.0,0.00017942,2]
[403675943,1769466648352,-313.34353873,0.00017942,2]
[403675944,1769466648361,-1000.0,0.00017942,2]
[403675945,1769466648371,-1000.0,0.00017942,2]
[403675946,1769466648382,-1000.0,0.00017942,2]
[403675947,1769466648391,-1000.0,0.00017942,2]
[403675948,1769466648400,-1000.0,0.00017942,2]
[403675949,1769466648409,-1000.0,0.00017942,2]
[403675950,1769466648419,-1000.0,0.00017942,2]
[403675951,1769466648428,-1000.0,0.00017942,2]
[403675952,1769466648437,-705.97670987,0.00017942,2]
[403675953,1769466648446,-765.0,0.00017953,2]
[403675954,1769466648455,-500.0,0.00017973,2]
[403675955,1769466648468,-550.0,0.00017973,2]
[403675956,1769466648477,-808.0,0.00017973,2]
[403675957,1769466648486,-150.0,0.00017973,2]
[403675958,1769466648495,-150.0,0.00017973,2]
[403675959,1769466648506,-765.0,0.00017981,2]
[403675960,1769466648515,-500.0,0.00017982,2]
[403675961,1769466648524,-837.0,0.00017983,2]
[403675962,1769466648534,-1180.82008836,0.0001799,2]
[403675963,1769466648543,-1180.82008836,0.0001799,2]
[403675964,1769466648551,-6671.58964986,0.00017992,2]
[403675965,1769466648560,-348.44,0.00017999,2]
[403675966,1769466648569,-300.0,0.00017999,2]
[403675967,1769466648578,-666.0,0.00017999,2]
[403675968,1769466648587,-500.0,0.00017999,2]
[403675969,1769466648598,-500.0,0.00017999,2]
[403675970,1769466648607,-500.0,0.00017999,2]
[403675971,1769466648616,-609.90965872,0.00017999,2]
[403675972,1769466648625,-500.0,0.00017999,2]
[403675973,1769466648635,-500.0,0.00017999,2]
[403675974,1769466648644,-466.6,0.00017999,2]
[403675975,1769466648654,-150.0,0.00017999,2]
[403675976,1769466648663,-150.0,0.00017999,2]
[403675977,1769466648673,-1302789.71385094,0.00018,2]
[403675978,1769466648682,-1200.37170123,0.00018,2]
[403675979,1769466648691,-200.0,0.00018,2]
[403675980,1769466648700,-4767599.41215644,0.00018,2]
[403675981,1769466648715,-247665.36125156,0.00018,2]
[403675982,1769466648726,-27115.5364935,0.00018,2]
[403675983,1769466648753,-117062.09165598,0.00018,2]
[403675984,1769466648764,-48725.7977555,0.00018,2]
[403675985,1769466648775,-13441.71464927,0.00018,2]
[403675986,1769466648786,-8871.68070531,0.00018,2]
[403675987,1769466648797,-382588.0,0.00018,2]
[403675988,1769466648808,-286424.39598656,0.00018,2]
[403675989,1769466648820,-2097.6823595,0.00018,2]
[403675990,1769466649272,-1000.0,0.00018,2]
[403675991,1769466649285,-2164.00745175,0.00018,2]
[403675992,1769466649296,-5218.28730159,0.00018,2]
[403675993,1769466649487,4792.45912002,0.00015281,2]
[403675994,1769466649512,3596.77087998,0.00015281,2]
[403675995,1769466649584,-448.17762938,0.00015715,2]
[403675996,1769466649594,-151.0,0.00015963,2]
[403675997,1769466649604,-1574.81530475,0.000169,2]
[403675998,1769466649802,-616.41039104,0.00015616,2]
[403675999,1769466649818,-2735.93457597,0.00015616,2]
[403676000,1769466649834,-5570.45453968,0.00015616,2]
[403676001,1769466649846,-10621.31783042,0.00015616,2]
[403676002,1769466649861,-1440.34246289,0.00015616,2]
[403676003,1769466649870,-5929.16714213,0.000169,2]
[403676004,1769466650829,6281.04568245,0.00015516,2]
[403676005,1769466664439,3718.96431755,0.00015615,2]
[403676006,1769466664470,10000.01,0.00015615,2]
[403676007,1769466664499,10000.01,0.00015615,2]
[403676008,1769466664530,10000.01,0.00015615,2]
[403676009,1769466664560,10000.01,0.00015615,2]
[403676010,1769466664590,10000.01,0.00015615,2]
[403676011,1769466664619,10000.01,0.00015615,2]
[403676012,1769466664648,10000.01,0.00015615,2]
[403676013,1769466664677,10000.01,0.00015615,2]
[403676014,1769466664705,10000.01,0.00015615,2]
[403676015,1769466664734,10000.01,0.00015615,2]
[403676016,1769466664762,10000.01,0.00015615,2]
[403676017,1769466664790,10000.01,0.00015615,2]
[403676018,1769466664818,10000.01,0.00015615,2]
[403676019,1769466664845,10000.01,0.00015615,2]
[403676020,1769466665978,-155.24071074,0.00015615,2]
[403676021,1769466668971,-206.04530438,0.00015615,2]
[403676022,1769466672020,-373.69188948,0.00015615,2]
[403676023,1769466673481,-175.25151122,0.00015615,2]
[403676024,1769466675528,-373.58055191,0.00015615,2]
[403676025,1769466676928,-189.53517489,0.00015615,2]
[403676026,1769466678449,-483.446138,0.00015615,2]
[403676027,1769466681456,-499.45205223,0.00015615,2]
[403676028,1769466684089,-274.61431748,0.00015615,2]
[403676029,1769466685659,-151.29273343,0.00015615,2]
[403676030,1769466687665,-170.16172132,0.00015615,2]
[403676031,1769466689696,-281.43583273,0.00015615,2]
[403676032,1769466691478,-280.0356392,0.00015605,2]
[403676033,1769466693145,-3959.22184818,0.00015605,2]
[403676034,1769466693295,-2027.95208117,0.00015605,2]
[403676035,1769466693320,-5944.10583766,0.00015605,2]
[403676036,1769466694090,-10000.01,0.00015615,2]
[403676037,1769466694370,-10000.01,0.00015615,2]
[403676038,1769466694565,-10000.01,0.00015615,2]
[403676039,1769466694917,-360.45575477,0.00015615,2]
[403676040,1769466696692,-10000.01,0.00015615,2]
[403676041,1769466697558,-300.0,0.00015615,2]
[403676042,1769466697906,-10000.01,0.00015615,2]
[403676043,1769466698180,-10000.01,0.00015615,2]
[403676044,1769466698401,-2524.865,0.00015303,2]
[403676045,1769466698432,-231.015,0.00015303,2]
[403676046,1769466698519,-4488.25,0.00015615,2]
[403676047,1769466699028,-308.81049488,0.00015615,2]
[403676048,1769466701623,-294.30543778,0.00015615,2]
[403676049,1769466705189,-319.213865,0.00015615,2]
[403676050,1769466709008,-445.04373616,0.00015615,2]
[403676051,1769466711131,-573.22499205,0.00015615,2]
[403676052,1769466713149,-280.40560413,0.00015615,2]
[403676053,1769466715629,-233.21668653,0.00015615,2]
[403676054,1769466718230,-230.77829554,0.00015615,2]
[403676055,1769466722060,-300.0,0.00015614,2]
[403676056,1769466722088,-74.91239142,0.00015615,2]
[403676057,1769466722123,-10000.01,0.00015615,2]
[403676058,1769466722139,-10000.01,0.00015615,2]
[403676059,1769466722169,-10000.01,0.00015615,2]
[403676060,1769466722208,-10000.01,0.00015615,2]
[403676061,1769466722223,-10000.01,0.00015615,2]
[403676062,1769466722315,-10000.01,0.00015615,2]
[403676063,1769466722433,-10000.01,0.00015615,2]
[403676064,1769466722583,-10000.01,0.00015615,2]
[403676065,1769466722718,-10000.01,0.00015615,2]
[403676066,1769466723294,-10000.01,0.00015615,2]
[403676067,1769466723419,-10000.01,0.00015615,2]
[403676068,1769466724385,-302.11367056,0.00015615,2]
[403676069,1769466727659,-315.73649027,0.00015615,2]
[403676070,1769466732923,-210.35338043,0.00015615,2]
[403676071,1769466735022,-732.12055295,0.00015615,2]
[403676072,1769466738110,-177.2800995,0.00015615,2]
[403676073,1769466740815,-170.56030923,0.00015614,2]
[403676074,1769466745278,-240.68893856,0.00015614,2]
[403676075,1769466746913,-322.87212497,0.00015614,2]
[403676076,1769466747728,-10000.01,0.00015614,2]
[403676077,1769466747953,-10000.01,0.00015614,2]
[403676078,1769466749011,-234.25708548,0.00015614,2]
[403676079,1769466750566,-4496.6882744,0.00015614,2]
[403676080,1769466750598,-1006.6334512,0.00015614,2]
[403676081,1769466750719,-10000.01,0.00015615,2]
[403676082,1769466750889,-10000.01,0.00015615,2]
[403676083,1769466751075,-10000.01,0.00015615,2]
[403676084,1769466751730,-200.0,0.00015615,2]
[403676085,1769466753407,-167.10986205,0.00015615,2]
[403676086,1769466755561,-228.42331248,0.00015615,2]
[403676087,1769466757331,-10000.01,0.00015615,2]
[403676088,1769466757502,-10000.01,0.00015615,2]
[403676089,1769466757774,-187.57386683,0.00015615,2]
[403676090,1769466759350,-191.61455368,0.00015615,2]
[403676091,1769466760884,-333.71542829,0.00015615,2]
[403676092,1769466762289,-357.84889641,0.00015615,2]
[403676093,1769466766690,-226.46511723,0.00015615,2]
[403676094,1769466770102,3510.21987103,0.00015516,2]
[403676095,1769466770430,-184.42079168,0.00015615,2]
[403676096,1769466771915,-254.30682026,0.00015615,2]
[403676097,1769466774016,-282.32205396,0.00015615,2]
[403676098,1769466777174,-267.86018064,0.00015615,2]
[403676099,1769466779237,-237.47072118,0.00015615,2]
[403676100,1769466781359,-220.90167977,0.00015614,2]
[403676101,1769466783031,-79.09832023,0.00015614,2]
[403676102,1769466783054,-161.42554416,0.00015614,2]
[403676103,1769466784886,-138.57445584,0.00015614,2]
[403676104,1769466784909,-21.83224643,0.00015614,2]
[403676105,1769466788181,-245.61663754,0.00015614,2]
[403676106,1769466789737,-32.55111603,0.00015614,2]
[403676107,1769466789766,-331.74881885,0.00015615,2]
[403676108,1769466791346,-272.39166125,0.00015615,2]
[403676109,1769466794536,-225.08216547,0.00015615,2]
[403676110,1769466796075,-268.01500404,0.00015615,2]
[403676111,1769466797681,-167.15341157,0.00015615,2]
[403676112,1769466799795,-472.55787541,0.00015615,2]
[403676113,1769466801263,-218.91069413,0.00015615,2]